bitfinex/quotes_SOLUSD_20250902
["timestamp","ask_amount","ask_price","bid_price","bid_amount"]
[1756794487440,2.7606083,204.44,204.43,5.60160313]
[1756794487855,2.7606083,204.44,204.43,4.89160313]
[1756794488066,41.2606083,204.44,204.43,4.89160313]
[1756794488652,41.2606083,204.44,204.43,5.60160313]
[1756794490167,38.5,204.44,204.43,5.60160313]
[1756794490564,38.5,204.44,204.43,31.60160313]
[1756794491238,38.5,204.45,204.43,31.60160313]
[1756794491438,0.06,204.46,204.45,26.0]
[1756794491675,38.56,204.46,204.45,26.0]
[1756794491842,0.06,204.46,204.45,26.71]
[1756794492246,0.06,204.46,204.45,5.60117143]
[1756794492447,2.8206083,204.49,204.45,17.82910001]
[1756794492646,38.5,204.48,204.46,0.71]
[1756794493466,38.5,204.48,204.47,26.0]
[1756794494369,2.8206083,204.49,204.48,30.89045383]
[1756794494370,0.06,204.49,204.48,30.89045383]
[1756794494567,41.9706083,204.49,204.48,4.89045383]
[1756794494749,41.3206083,204.49,204.48,30.89045383]
[1756794495571,41.40740225,204.49,204.48,30.89045383]
[1756794496563,41.40740225,204.49,204.48,4.89045383]
[1756794497768,42.05740225,204.49,204.48,4.89045383]
[1756794497976,55.65299626,204.49,204.48,4.89045383]
[1756794498181,13.59559401,204.48,204.46,4.89076402]
[1756794498476,13.59559401,204.46,204.44,4.89121532]
[1756794498658,41.24091135,204.45,204.44,4.89121532]
[1756794498976,41.24091135,204.45,204.42,0.03]
[1756794498977,41.89091135,204.45,204.42,0.03]
[1756794499157,2.76091135,204.43,204.42,0.03]
[1756794499362,41.24091135,204.43,204.42,26.03]
[1756794499576,41.2846011,204.43,204.42,26.03]
[1756794499770,41.2846011,204.43,204.42,0.03]
[1756794500158,41.2846011,204.43,204.42,26.03]
[1756794501178,41.2846011,204.43,204.42,30.92188924]
[1756794501704,41.2846011,204.43,204.42,4.92188924]
[1756794502350,54.88019511,204.43,204.42,4.92188924]
[1756794503161,2.8046011,204.43,204.42,0.03]
[1756794503380,41.2846011,204.43,204.42,0.74]
[1756794503883,41.2846011,204.43,204.42,0.03]
[1756794504191,41.24124334,204.43,204.42,0.03]
[1756794505983,54.83683735,204.43,204.42,0.03]
[1756794507474,55.48683735,204.43,204.42,0.03]
[1756794507668,58.77823835,204.43,204.42,0.03]
[1756794507869,56.01699501,204.43,204.42,0.03]
[1756794508182,56.01701974,204.43,204.42,0.03]
[1756794510778,58.12826308,204.43,204.42,0.03]
[1756794513174,54.83683735,204.43,204.42,0.03]
[1756794513395,13.59559401,204.43,204.42,0.03]
[1756794513598,54.83683735,204.43,204.42,0.03]
[1756794515485,16.35683735,204.43,204.42,0.03]
[1756794515803,54.83683735,204.43,204.42,0.03]
[1756794516724,13.59559401,204.43,204.42,0.03]
[1756794516908,16.35683735,204.43,204.42,0.7]
[1756794517124,41.24124334,204.43,204.42,0.7]
[1756794517902,41.24124334,204.43,204.42,5.59188924]
[1756794521093,41.24124334,204.43,204.42,4.92188924]
[1756794521408,41.24124334,204.43,204.42,5.59188924]
[1756794522207,38.48,204.43,204.42,4.92188924]
[1756794522395,38.48,204.43,204.42,5.59188924]
[1756794522396,41.24124334,204.43,204.42,5.59188924]
[1756794522708,41.24124334,204.43,204.42,4.92188924]
[1756794523098,58.80003076,204.43,204.42,4.92188924]
[1756794523281,58.80003076,204.43,204.42,0.03]
[1756794523485,58.82285128,204.43,204.42,0.03]
[1756794525485,13.59559401,204.42,204.39,0.03]
[1756794525704,16.37965787,204.4,204.39,0.03]
[1756794526006,19.67285128,204.4,204.39,0.03]
[1756794526186,20.34285128,204.4,204.39,0.03]
[1756794527287,19.67285128,204.4,204.39,0.03]
[1756794528717,20.34285128,204.4,204.39,0.03]
[1756794529090,147.39559401,204.39,204.38,0.03]
[1756794529292,13.59559401,204.38,204.35,0.03]
[1756794529593,2.78406386,204.36,204.35,0.03]
[1756794529788,16.37965787,204.36,204.35,0.03]
[1756794530008,17.04965787,204.36,204.35,0.03]
[1756794530813,19.83372173,204.36,204.35,0.03]
[1756794531750,19.83372173,204.36,204.33,0.03]
[1756794531751,13.59559401,204.35,204.33,0.03]
[1756794532017,54.83965787,204.34,204.33,0.03]
[1756794532209,55.50965787,204.34,204.33,0.03]
[1756794532707,54.83965787,204.34,204.33,0.03]
[1756794533498,54.84166738,204.34,204.33,0.03]
[1756794534716,56.40906649,204.34,204.33,0.03]
[1756794536529,52.05559401,204.34,204.33,0.03]
[1756794536734,56.40906649,204.34,204.33,0.03]
[1756794537108,13.59559401,204.34,204.33,0.7]
[1756794537312,52.05559401,204.34,204.33,0.7]
[1756794537533,56.40906649,204.34,204.33,0.7]
[1756794538604,57.07906649,204.34,204.33,0.03]
[1756794539832,56.40906649,204.34,204.33,0.03]
[1756794540235,56.37593193,204.34,204.33,0.03]
[1756794542036,56.37599282,204.34,204.33,0.03]
[1756794543213,42.78039881,204.34,204.33,0.7]
[1756794544539,56.37599282,204.34,204.33,0.03]
[1756794544713,56.37599282,204.34,204.33,0.7]
[1756794545239,56.37599282,204.34,204.33,5.59404394]
[1756794546037,56.37599282,204.34,204.33,0.03]
[1756794547612,57.03599282,204.34,204.33,0.03]
[1756794548043,56.37599282,204.34,204.33,0.03]
[1756794549227,57.03599282,204.34,204.33,0.03]
[1756794549546,56.37599282,204.34,204.33,0.03]
[1756794551332,59.66120879,204.34,204.33,0.03]
[1756794552228,13.59559401,204.33,204.3,0.03]
[1756794552544,22.23639163,204.31,204.3,0.03]
[1756794553317,22.89639163,204.31,204.3,0.03]
[1756794553518,147.39559401,204.3,204.26,0.03]
[1756794553735,42.76039881,204.29,204.26,0.03]
[1756794554119,42.76039881,204.29,204.26,4.92569826]
[1756794555042,42.76039881,204.29,204.26,5.57569826]
[1756794555242,13.59559401,204.28,204.26,0.03]
[1756794555444,42.76039881,204.27,204.26,0.03]
[1756794555944,57.01599282,204.27,204.26,0.03]
[1756794556253,56.35599282,204.27,204.26,0.68]
[1756794556449,56.35599282,204.27,204.26,0.03]
[1756794557857,56.35871291,204.27,204.26,0.03]
[1756794559553,56.35871291,204.27,204.26,0.68]
[1756794559746,17.91871291,204.27,204.26,0.68]
[1756794559946,56.35871291,204.27,204.26,0.68]
[1756794560148,17.91871291,204.27,204.26,0.68]
[1756794560349,56.35871291,204.27,204.26,0.68]
[1756794561046,56.35871291,204.27,204.26,0.03]
[1756794562155,17.91871291,204.27,204.26,0.03]
[1756794562354,56.35871291,204.27,204.26,0.03]
[1756794562828,56.35871291,204.27,204.26,0.68]
[1756794563024,17.91871291,204.27,204.26,0.03]
[1756794563232,56.35871291,204.27,204.26,0.68]
[1756794563428,56.35871291,204.27,204.26,0.03]
[1756794564436,57.01871291,204.27,204.26,0.03]
[1756794564637,60.30088691,204.27,204.26,0.03]
[1756794565358,60.30160491,204.27,204.26,0.03]
[1756794565563,59.64160491,204.27,204.26,0.03]
[1756794567556,60.30160491,204.27,204.26,0.03]
[1756794567759,65.19708638,204.27,204.26,0.03]
[1756794568353,60.30160491,204.27,204.26,0.03]
[1756794569471,21.20160491,204.27,204.26,0.03]
[1756794569672,59.64160491,204.27,204.26,0.03]
[1756794571847,21.20160491,204.27,204.26,0.68]
[1756794572052,56.35871291,204.27,204.26,0.68]
[1756794573649,13.59559401,204.26,204.25,0.03]
[1756794573845,21.86684397,204.26,204.25,0.03]
[1756794574276,26.7625651,204.26,204.25,0.03]
[1756794574776,26.90169684,204.26,204.25,0.03]
[1756794575068,22.00597571,204.26,204.25,0.03]
[1756794575267,21.34597571,204.26,204.25,0.03]
[1756794575659,59.76597571,204.26,204.25,0.03]
[1756794575974,59.76597571,204.26,204.25,0.68]
[1756794576179,56.47784465,204.26,204.25,0.68]
[1756794576360,56.47784465,204.26,204.25,0.03]
[1756794576566,56.33860834,204.26,204.25,0.03]
[1756794576760,56.33860834,204.26,204.25,0.68]
[1756794576968,52.01559401,204.26,204.25,0.68]
[1756794577282,56.33860834,204.26,204.25,0.68]
[1756794578165,56.33860834,204.26,204.25,0.03]
[1756794578376,59.6276034,204.26,204.25,0.03]
[1756794586490,85.6276034,204.26,204.25,0.03]
[1756794586674,86.3076034,204.26,204.25,0.03]
[1756794586877,91.20332453,204.26,204.25,0.03]
[1756794587086,86.3076034,204.26,204.25,0.03]
[1756794588195,85.6276034,204.26,204.25,0.03]
[1756794589262,91.20332453,204.26,204.25,0.03]
[1756794590771,91.20502397,204.26,204.25,0.03]
[1756794591400,95.32203397,204.26,204.25,0.03]
[1756794591969,95.07203397,204.26,204.25,0.03]
[1756794592784,51.75631284,204.26,204.25,0.03]
[1756794592974,89.47631284,204.26,204.25,0.03]
[1756794593381,94.37203397,204.26,204.25,0.03]
[1756794593590,94.43203397,204.26,204.25,0.03]
[1756794593782,89.53631284,204.26,204.25,0.03]
[1756794594871,94.43203397,204.26,204.25,0.03]
[1756794595279,90.31502397,204.26,204.25,0.03]
[1756794595476,92.27771614,204.26,204.25,0.03]
[1756794595693,92.27771614,204.26,204.24,0.03]
[1756794595694,17.92033995,204.25,204.24,0.03]
[1756794595997,23.77749565,204.25,204.24,0.03]
[1756794596372,25.74034865,204.25,204.24,0.03]
[1756794596878,30.63630948,204.25,204.24,0.03]
[1756794597275,31.31630948,204.25,204.24,0.03]
[1756794597788,30.63630948,204.25,204.24,0.03]
[1756794598780,26.51163923,204.25,204.24,0.03]
[1756794599578,21.6156784,204.25,204.24,0.03]
[1756794599774,60.0156784,204.25,204.24,0.03]
[1756794599983,59.0156784,204.25,204.24,0.03]
[1756794600164,63.91163923,204.25,204.24,0.03]
[1756794600369,26.0,204.22,204.21,0.2]
[1756794600682,70.45723139,204.22,204.21,0.85]
[1756794600871,74.58546266,204.22,204.21,0.2]
[1756794601074,75.35391144,204.22,204.21,0.2]
[1756794601695,70.45723139,204.22,204.21,0.2]
[1756794601892,84.0528254,204.22,204.21,0.2]
[1756794602566,88.94950545,204.22,204.21,0.2]
[1756794602771,84.0528254,204.22,204.21,0.2]
[1756794603184,88.17819926,204.22,204.21,0.2]
[1756794603382,84.0528254,204.22,204.21,0.2]
[1756794603699,84.0328254,204.22,204.21,0.2]
[1756794604987,88.92950545,204.22,204.21,0.2]
[1756794605196,93.05490626,204.22,204.21,0.2]
[1756794605507,13.59559401,204.21,204.2,0.2]
[1756794605685,19.6528254,204.21,204.2,0.2]
[1756794606071,58.0328254,204.21,204.2,0.9]
[1756794606270,55.26458907,204.21,204.2,5.79715964]
[1756794606507,58.0328254,204.21,204.2,0.9]
[1756794607991,58.0328254,204.21,204.2,5.79715964]
[1756794608171,58.0328254,204.21,204.2,0.9]
[1756794609204,58.0328254,204.21,204.2,0.2]
[1756794609503,13.59559401,204.17,204.15,0.7]
[1756794609714,13.59559401,204.17,204.1,14.72501]
[1756794609715,13.59559401,204.15,204.1,14.72501]
[1756794609879,38.38,204.14,204.11,0.7]
[1756794610079,2.83552649,204.12,204.11,0.7]
[1756794610303,38.38,204.12,204.11,3.53552649]
[1756794610680,38.38,204.12,204.11,3.46849181]
[1756794611012,133.8,204.22,204.11,3.46849181]
[1756794611310,13.59559401,204.2,204.13,26.0]
[1756794611516,13.59559401,204.2,204.15,2.76849181]
[1756794611517,38.18,204.19,204.15,2.76849181]
[1756794611674,38.18,204.19,204.16,0.7]
[1756794611986,38.18,204.19,204.16,15.420675]
[1756794612190,38.38,204.18,204.17,0.7]
[1756794612391,38.38,204.18,204.17,5.59787921]
[1756794613805,54.74408582,204.18,204.17,0.7]
[1756794613977,58.04372232,204.18,204.17,5.59787921]
[1756794615489,38.38,204.18,204.17,5.59787921]
[1756794618383,54.74408582,204.18,204.17,5.59787921]
[1756794619207,54.74408582,204.18,204.16,4.89808886]
[1756794619511,19.66452026,204.17,204.15,4.89832242]
[1756794619817,19.66452026,204.17,204.13,14.720675]
[1756794619818,13.59559401,204.15,204.13,14.720675]
[1756794619992,41.12849181,204.14,204.12,5.59884664]
[1756794620310,2.76849181,204.13,204.12,5.59884664]
[1756794620513,13.59559401,204.12,204.11,0.03]
[1756794620714,54.72408582,204.12,204.11,0.03]
[1756794620891,54.72408582,204.12,204.11,0.73]
[1756794621600,51.70559401,204.12,204.11,5.62931899]
[1756794621804,54.47408582,204.12,204.11,5.62931899]
[1756794621997,38.36,204.12,204.11,5.62931899]
[1756794622415,2.76849181,204.13,204.11,5.62931899]
[1756794622721,133.8,204.16,204.12,0.7]
[1756794622901,41.65969934,204.15,204.11,4.92931899]
[1756794623097,38.36,204.15,204.12,0.7]
[1756794623512,13.59559401,204.14,204.12,0.7]
[1756794623713,51.95559401,204.13,204.12,5.59907897]
[1756794623904,54.72408582,204.13,204.12,5.59907897]
[1756794624620,54.171329,204.13,204.12,5.59907897]
[1756794625017,15.811329,204.13,204.12,5.59907897]
[1756794625219,54.171329,204.13,204.12,5.59907897]
[1756794625390,133.8,204.16,204.12,5.59907897]
[1756794625594,40.57573499,204.15,204.12,5.59907897]
[1756794625789,40.57573499,204.15,204.13,0.7]
[1756794626011,40.57573499,204.15,204.12,17.1467764]
[1756794626012,40.57573499,204.15,204.14,0.7]
[1756794626209,40.57573499,204.15,204.12,5.59907897]
[1756794626406,2.21573499,204.13,204.12,5.59907897]
[1756794626698,54.171329,204.13,204.12,4.89907897]
[1756794627415,54.171329,204.13,204.11,4.92931899]
[1756794627600,2.21573499,204.12,204.11,5.62931899]
[1756794630811,133.8,204.16,204.11,20.09335146]
[1756794631008,38.36,204.15,204.12,2.91573499]
[1756794631212,38.36,204.15,204.13,0.7]
[1756794631519,38.36,204.15,204.14,0.7]
[1756794631908,40.57573499,204.15,204.14,5.598599]
[1756794632122,57.46999451,204.15,204.14,14.723565]
[1756794632503,57.46999451,204.15,204.13,4.89881673]
[1756794632813,15.811329,204.14,204.13,4.39881673]
[1756794633335,13.59559401,204.14,204.13,4.39881673]
[1756794633624,2.21573499,204.14,204.13,5.09881673]
[1756794634203,133.8,204.16,204.13,7.31455172]
[1756794634416,38.36,204.15,204.14,0.7]
[1756794634621,38.36,204.15,204.14,15.42212]
[1756794636116,38.36,204.15,204.14,20.320719]
[1756794636915,38.36,204.15,204.14,19.620719]
[1756794636916,40.57573499,204.15,204.14,19.620719]
[1756794637123,40.57573499,204.15,204.14,4.898599]
[1756794637431,13.59559401,204.14,204.13,14.723565]
[1756794637731,16.89570077,204.14,204.12,4.89885786]
[1756794637931,13.59559401,204.12,204.11,4.92927811]
[1756794638105,15.811329,204.12,204.11,4.92927811]
[1756794638302,15.811329,204.12,204.11,0.03]
[1756794640013,13.59559401,204.12,204.11,0.03]
[1756794640332,15.811329,204.12,204.11,0.03]
[1756794640932,19.11192186,204.12,204.11,0.03]
[1756794646243,19.81192186,204.12,204.11,0.03]
[1756794649041,24.71100083,204.12,204.11,0.03]
[1756794649546,36.13613979,204.12,204.11,0.03]
[1756794649746,33.57394079,204.12,204.11,0.03]
[1756794650638,33.57394079,204.12,204.08,0.03]
[1756794650639,39.59559401,204.09,204.08,0.03]
[1756794650821,83.45192186,204.09,204.08,0.03]
[1756794651144,84.15192186,204.09,204.08,0.03]
[1756794651442,83.45192186,204.09,204.08,0.03]
[1756794652846,89.05172096,204.09,204.08,0.03]
[1756794653562,94.63308596,204.09,204.08,0.03]
[1756794655441,90.98322307,204.09,204.08,0.03]
[1756794655625,90.30165717,204.09,204.08,0.03]
[1756794655944,84.70185807,204.09,204.08,0.03]
[1756794656932,85.40185807,204.09,204.08,0.03]
[1756794657347,84.70185807,204.09,204.08,0.03]
[1756794658050,85.40185807,204.09,204.08,0.03]
[1756794658233,90.30165717,204.09,204.08,0.03]
[1756794658744,85.40185807,204.09,204.08,0.03]
[1756794659630,90.30165717,204.09,204.08,0.03]
[1756794660326,84.70185807,204.09,204.08,0.03]
[1756794660526,42.89618687,204.09,204.08,0.03]
[1756794660836,85.40185807,204.09,204.08,0.03]
[1756794661039,90.30165717,204.09,204.08,0.03]
[1756794663743,13.59559401,204.04,204.01,0.68]
[1756794664062,17.06126521,204.02,204.01,0.68]
[1756794664261,17.06126521,204.02,204.0,0.5]
[1756794664470,55.38126521,204.01,204.0,0.5]
[1756794664825,55.38126521,204.01,204.0,1.18]
[1756794665031,51.91559401,204.01,204.0,6.08196078]
[1756794665230,55.38126521,204.01,204.0,1.18]
[1756794665743,51.91559401,204.01,204.0,6.08196078]
[1756794666652,38.32,204.01,204.0,9.54763198]
[1756794667146,38.32,204.01,204.0,18.33686274]
[1756794667949,133.8,204.03,204.0,18.33686274]
[1756794668150,38.32,204.03,204.01,0.72]
[1756794668458,38.32,204.03,204.02,3.4656712]
[1756794668637,38.32,204.03,204.02,0.72]
[1756794668841,38.32,204.03,204.02,5.62148024]
[1756794678548,133.8,204.05,204.02,9.08715144]
[1756794678764,38.32,204.06,204.04,3.4656712]
[1756794678955,38.32,204.06,204.05,0.72]
[1756794679642,38.32,204.06,204.05,5.62075961]
[1756794680738,13.78579228,204.06,204.05,9.08643081]
[1756794680938,13.65559401,204.11,204.05,21.33832985]
[1756794681270,3.4656712,204.08,204.05,17.15265865]
[1756794681446,38.3,204.07,204.05,17.87265865]
[1756794681644,38.3,204.07,204.02,26.0]
[1756794681645,51.89559401,204.06,204.0,0.5]
[1756794681850,13.65559401,204.11,204.02,0.72]
[1756794681851,3.4656712,204.04,204.02,0.72]
[1756794682059,38.3,204.03,204.02,0.72]
[1756794683163,41.7656712,204.03,204.01,4.9017205]
[1756794683357,3.4656712,204.02,204.01,4.9017205]
[1756794683876,17.06126521,204.02,204.01,4.9017205]
[1756794685551,38.3,204.03,204.01,17.87602175]
[1756794685856,38.3,204.03,204.02,0.72]
[1756794688080,38.3,204.03,204.02,5.62148024]
[1756794689064,0.06,204.08,204.02,21.34085205]
[1756794689260,38.36,204.08,204.03,4.1856712]
[1756794689460,38.36,204.08,204.04,0.72]
[1756794689658,38.36,204.08,204.05,0.72]
[1756794690055,42.5156712,204.08,204.04,4.9009998]
[1756794690468,3.4656712,204.07,204.04,4.9009998]
[1756794690863,3.4656712,204.07,204.04,5.6209998]
[1756794691176,38.3,204.06,204.04,5.6209998]
[1756794691954,38.3,204.06,204.04,4.9009998]
[1756794692150,38.3,204.06,204.03,4.90124001]
[1756794692355,38.3,204.06,204.03,5.62124001]
[1756794692556,38.3,204.06,204.04,0.72]
[1756794693271,38.3,204.06,204.05,4.90075961]
[1756794693470,13.59559401,204.05,204.02,4.90148024]
[1756794693654,3.4656712,204.03,204.02,4.90148024]
[1756794693856,17.06126521,204.03,204.02,4.90148024]
[1756794694756,20.36677991,204.03,204.0,5.40193522]
[1756794694958,17.06126521,204.01,204.0,5.40193522]
[1756794695158,13.59559401,204.01,204.0,5.40193522]
[1756794695358,41.7656712,204.02,204.0,6.10193522]
[1756794696158,41.7656712,204.02,204.0,5.40193522]
[1756794696480,17.06126521,204.01,204.0,5.40193522]
[1756794696906,17.73126521,204.01,204.0,0.5]
[1756794697054,13.59559401,204.01,204.0,0.5]
[1756794697260,38.3,204.02,204.0,0.5]
[1756794697261,41.7656712,204.02,204.0,6.10196078]
[1756794697475,17.06126521,204.01,204.0,5.40196078]
[1756794698069,17.73126521,204.01,204.0,5.40196078]
[1756794698568,17.06126521,204.01,204.0,5.40196078]
[1756794698770,3.4656712,204.02,204.0,5.40196078]
[1756794699057,38.3,204.01,204.0,6.10196078]
[1756794699471,38.28,204.03,204.0,21.82253394]
[1756794699755,0.06,204.08,204.02,3.4656712]
[1756794699978,0.06,204.08,204.06,3.4656712]
[1756794700286,0.06,204.08,204.07,0.7]
[1756794700578,0.06,204.08,204.07,4.1656712]
[1756794700783,0.06,204.11,204.07,4.1656712]
[1756794700968,0.06,204.11,204.1,3.4656712]
[1756794701168,3.30338141,204.13,204.11,4.89931899]
[1756794701376,0.06,204.16,204.14,26.0]
[1756794701896,0.06,204.17,204.15,4.1656712]
[1756794702074,0.06,204.19,204.16,3.4656712]
[1756794702387,0.06,204.19,204.18,3.4656712]
[1756794702766,0.06,204.19,204.18,0.7]
[1756794703172,0.06,204.19,204.18,9.06331053]
[1756794703567,0.06,204.19,204.18,5.59763933]
[1756794704776,0.06,204.19,204.18,9.06331053]
[1756794705369,0.06,204.19,204.18,5.59763933]
[1756794705569,0.06,204.19,204.18,9.06331053]
[1756794705793,0.06,204.19,204.18,5.59763933]
[1756794705987,0.06,204.19,204.18,9.06331053]
[1756794707506,1e-08,204.19,204.18,35.06331053]
[1756794707793,1e-08,204.22,204.21,26.0]
[1756794707961,1e-08,204.22,204.21,29.4656712]
[1756794708166,1e-08,204.22,204.21,30.1656712]
[1756794708367,1e-08,204.22,204.21,32.1276572]
[1756794709377,1e-08,204.22,204.21,6.85890583]
[1756794709568,1e-08,204.22,204.21,5.59691983]
[1756794711001,3.46567121,204.22,204.21,4.89691983]
[1756794711380,0.67000001,204.22,204.21,4.89691983]
[1756794711581,3.46567121,204.22,204.21,4.89691983]
[1756794712898,3.46567121,204.22,204.19,4.89739948]
[1756794713702,3.4656712,204.21,204.19,4.89739948]
[1756794713881,3.4656712,204.2,204.19,4.89739948]
[1756794714081,3.4656712,204.21,204.19,4.89739948]
[1756794714277,3.4656712,204.2,204.19,4.89739948]
[1756794714603,4.1356712,204.2,204.19,4.89739948]
[1756794714808,3.4656712,204.2,204.19,4.89739948]
[1756794714974,38.93000001,204.22,204.18,4.89763933]
[1756794715174,3.4656712,204.19,204.18,4.89763933]
[1756794715594,3.3156712,204.19,204.18,4.89763933]
[1756794716708,0.67,204.21,204.16,4.89811912]
[1756794716920,3.4656712,204.19,204.17,0.7]
[1756794717215,3.4656712,204.2,204.17,0.7]
[1756794717718,2.21406151,204.2,204.17,0.7]
[1756794718010,2.21406151,204.2,204.16,17.14341692]
[1756794718208,2.21406151,204.19,204.16,17.84341692]
[1756794718395,2.21406151,204.18,204.16,17.84341692]
[1756794718581,2.21406151,204.19,204.16,17.84341692]
[1756794718783,2.21406151,204.19,204.16,5.59811912]
[1756794718988,2.21406151,204.18,204.16,5.59811912]
[1756794719189,2.21406151,204.18,204.16,4.89811912]
[1756794719395,2.21406151,204.17,204.16,4.89811912]
[1756794719991,2.21406151,204.18,204.16,4.89811912]
[1756794720190,2.21406151,204.19,204.17,0.7]
[1756794720410,40.45406151,204.21,204.18,0.7]
[1756794721218,40.45406151,204.21,204.19,4.89739948]
[1756794721418,40.45406152,204.22,204.2,0.7]
[1756794721628,40.45406152,204.22,204.19,4.89739948]
[1756794722121,40.45406152,204.22,204.19,5.59739948]
[1756794722122,2.21406151,204.21,204.19,5.59739948]
[1756794722517,2.21406151,204.21,204.19,4.89739948]
[1756794722728,2.21406151,204.2,204.18,4.89763393]
[1756794723015,2.21406151,204.19,204.18,4.89763393]
[1756794723197,2.21406151,204.19,204.16,4.89811912]
[1756794723395,2.21406151,204.18,204.16,4.92811912]
[1756794723593,2.21406151,204.17,204.16,4.92811912]
[1756794723796,2.21406151,204.18,204.16,4.92811912]
[1756794724306,2.21406151,204.18,204.16,5.62811912]
[1756794724504,2.21406151,204.18,204.16,4.92811912]
[1756794725396,2.21406151,204.17,204.16,0.03]
[1756794725597,40.45406151,204.18,204.16,0.75]
[1756794726097,40.45406151,204.18,204.16,0.03]
[1756794728199,13.59559402,204.22,204.16,0.03]
[1756794728200,1e-08,204.22,204.16,0.03]
[1756794728413,1e-08,204.22,204.17,0.72]
[1756794728414,2.21406151,204.21,204.17,0.72]
[1756794728598,2.21406151,204.2,204.17,14.718509]
[1756794729103,40.45406151,204.2,204.17,14.718509]
[1756794729307,2.21406151,204.19,204.16,0.03]
[1756794729508,2.21406151,204.17,204.16,4.92811912]
[1756794729709,38.91,204.2,204.16,4.92811912]
[1756794729910,2.21406151,204.17,204.16,4.92811912]
[1756794731007,2.21406151,204.17,204.16,0.03]
[1756794731414,2.21406151,204.18,204.16,0.03]
[1756794731619,1e-08,204.22,204.17,0.72]
[1756794731802,38.24,204.2,204.17,0.72]
[1756794732005,40.45406151,204.2,204.17,0.72]
[1756794732199,40.45406151,204.2,204.16,14.749953]
[1756794732428,2.21406151,204.18,204.16,14.749953]
[1756794732721,2.21406151,204.17,204.16,14.749953]
[1756794733129,2.21406151,204.17,204.16,4.92811912]
[1756794733506,40.45406151,204.2,204.16,5.64811912]
[1756794733707,2.21406151,204.19,204.16,5.64811912]
[1756794734043,14.26559402,204.22,204.17,0.72]
[1756794734044,13.59559402,204.22,204.17,0.72]
[1756794734207,1e-08,204.22,204.18,2.21406151]
[1756794734525,1e-08,204.22,204.19,0.72]
[1756794734927,1e-08,204.22,204.2,0.72]
[1756794735132,1e-08,204.22,204.21,4.89691983]
[1756794735432,1e-08,204.22,204.19,19.61432796]
[1756794735433,0.67,204.21,204.19,19.61432796]
[1756794735636,40.45406151,204.2,204.19,4.89726396]
[1756794735824,38.24,204.2,204.19,4.89726396]
[1756794736009,40.45406151,204.2,204.19,4.89726396]
[1756794737423,40.45406151,204.2,204.17,4.89787921]
[1756794737608,2.21406151,204.19,204.17,5.61787921]
[1756794737934,2.21406151,204.19,204.18,0.2]
[1756794738319,2.88406151,204.19,204.18,0.2]
[1756794738518,38.24,204.2,204.18,0.2]
[1756794738832,40.45406151,204.2,204.18,0.2]
[1756794739424,40.45406151,204.2,204.19,4.89739948]
[1756794741430,40.45406151,204.2,204.18,5.09758132]
[1756794741641,16.47965552,204.19,204.18,0.2]
[1756794741961,16.53965552,204.19,204.18,0.2]
[1756794742535,15.86965552,204.19,204.18,0.2]
[1756794743116,16.53965552,204.19,204.18,0.2]
[1756794744425,19.83670973,204.19,204.18,0.2]
[1756794747146,24.73410921,204.19,204.18,0.2]
[1756794747351,13.59559401,204.18,204.16,0.03]
[1756794747551,57.34670973,204.17,204.16,0.03]
[1756794747851,58.01670973,204.17,204.16,0.03]
[1756794750343,19.10670973,204.17,204.16,0.03]
[1756794750539,57.34670973,204.17,204.16,0.03]
[1756794750738,19.10670973,204.17,204.16,0.03]
[1756794750941,54.04965552,204.17,204.16,0.03]
[1756794751535,13.59559401,204.17,204.16,0.75]
[1756794751844,54.04965552,204.17,204.16,0.75]
[1756794752250,15.80965552,204.17,204.16,0.75]
[1756794752433,13.59559401,204.17,204.16,5.64811912]
[1756794752634,38.24,204.17,204.16,5.64811912]
[1756794752829,0.06,204.19,204.16,5.64811912]
[1756794752830,38.3,204.19,204.16,7.86218063]